bitfinex-derivatives/quotes_ETHF0:USTF0_20260213
["timestamp","ask_amount","ask_price","bid_price","bid_amount"]
[1770987058962,0.85362886,1960.9,1960.2,7.57985679]
[1770987059167,0.59845886,1960.8,1960.2,3.60078054]
[1770987059963,0.59845886,1960.7,1960.2,0.00409426]
[1770987060364,0.59845886,1960.7,1960.2,0.56609212]
[1770987061166,0.59845886,1960.7,1960.3,0.54311934]
[1770987061771,0.56360477,1960.8,1960.4,0.54311934]
[1770987062167,0.56360477,1960.8,1960.4,0.04311934]
[1770987062368,0.56360477,1960.9,1960.4,0.04311934]
[1770987062769,3.62377298,1961.0,1960.4,0.04311934]
[1770987062971,0.56360477,1960.9,1960.4,0.04311934]
[1770987063868,0.56360477,1960.9,1960.4,3.04114687]
[1770987064072,0.56360477,1960.8,1960.3,3.04114687]
[1770987064569,0.56360477,1960.8,1960.2,3.04524113]
[1770987066075,0.56360477,1960.8,1960.2,3.36998682]
[1770987067580,0.56360477,1960.7,1960.2,3.04524113]
[1770987067778,0.56360477,1960.7,1960.2,0.00409426]
[1770987068281,0.56360477,1960.7,1960.2,0.31201348]
[1770987069276,0.56360477,1960.7,1960.3,0.30791922]
[1770987071077,0.56360477,1960.7,1960.2,0.33126876]
[1770987071372,0.56360477,1960.7,1960.2,0.00409426]
[1770987076178,0.56360477,1960.7,1960.2,0.33136969]
[1770987077177,49.23587314,1961.0,1960.2,0.33136969]
[1770987077479,0.56360477,1960.9,1960.2,0.33136969]
[1770987077680,0.56360477,1960.9,1960.3,0.32867047]
[1770987085086,0.56360477,1960.9,1960.2,3.04524113]
[1770987085584,0.56360477,1960.9,1960.2,0.00409426]
[1770987086887,0.56360477,1960.8,1960.2,0.00409426]
[1770987087188,0.56360477,1960.7,1960.2,0.00409426]
[1770987090289,0.56360477,1960.6,1960.0,3.04114687]
[1770987091282,0.56836091,1960.6,1960.0,3.04499607]
[1770987092984,0.54275743,1960.5,1960.0,3.04499607]
[1770987093195,0.54275743,1960.3,1960.0,0.0038492]
[1770987093387,0.54275743,1960.3,1959.9,3.04114687]
[1770987093789,0.54275743,1960.3,1959.8,3.04114687]
[1770987094296,0.54275743,1960.3,1959.8,3.04686963]
[1770987095292,0.54275743,1960.3,1959.8,0.00572276]
[1770987098897,0.59183172,1960.1,1959.5,3.45716417]
[1770987099996,0.59183172,1960.1,1959.6,0.4160173]
[1770987100588,0.59183172,1960.4,1959.7,0.41547383]
[1770987103999,0.59183172,1960.3,1959.6,1.50062685]
[1770987104297,0.59183172,1960.3,1959.6,1.91149231]
[1770987104497,0.59183172,1960.3,1959.7,0.41086546]
[1770987107600,0.59183172,1960.3,1959.5,3.45907141]
[1770987108000,0.59183172,1960.3,1959.6,0.41349198]
[1770987109901,0.59183172,1960.1,1959.5,3.04557943]
[1770987110097,0.59183172,1960.1,1959.5,0.00443256]
[1770987111295,3.06016821,1960.4,1959.6,1.50062685]
[1770987111501,0.59183172,1960.3,1959.7,0.41660676]
[1770987121314,0.59183172,1960.3,1959.8,0.43070048]
[1770987121619,0.55072381,1960.6,1959.9,0.43070048]
[1770987121820,0.54596767,1960.5,1959.8,3.04114687]
[1770987122121,0.54596767,1960.5,1959.8,3.47184735]
[1770987122820,0.54596767,1960.3,1959.8,3.04114687]
[1770987123212,0.54596767,1960.1,1959.8,3.04114687]
[1770987124217,0.54596767,1960.1,1959.6,3.04114687]
[1770987124427,0.54596767,1959.9,1959.5,0.00443256]
[1770987125716,0.54596767,1959.9,1959.5,0.42482118]
[1770987127923,0.54596767,1959.9,1959.5,0.42209343]
[1770987128615,0.54596767,1960.0,1959.5,0.42209343]
[1770987129016,0.25526,1960.3,1959.5,0.42209343]
[1770987129017,0.54596767,1960.1,1959.5,0.42209343]
[1770987130826,0.54596767,1960.1,1959.5,0.00443256]
[1770987131125,0.54596767,1959.9,1959.5,0.00443256]
[1770987136031,0.54596767,1959.9,1959.3,3.04114687]
[1770987136924,0.54596767,1959.9,1959.2,8.00076893]
[1770987137121,0.54596767,1959.9,1959.2,8.00466717]
[1770987140131,0.54596767,1959.9,1959.2,3.46359306]
[1770987140932,0.54596767,1959.9,1959.2,3.46606775]
[1770987141132,0.54596767,1959.9,1959.3,0.42102264]
[1770987141433,0.54596767,1959.9,1959.2,0.42492088]
[1770987142334,0.54596767,1959.9,1959.3,0.4206552]
[1770987144430,0.54596767,1960.0,1959.5,0.42112027]
[1770987151236,3.63513629,1960.1,1959.5,0.42112027]
[1770987151535,0.57496808,1960.1,1959.5,0.42112027]
[1770987151728,0.57496808,1960.2,1959.7,0.42789217]
[1770987155038,0.57496808,1960.2,1959.8,0.47923004]
[1770987155237,3.31540821,1960.4,1959.8,0.47923004]
[1770987155238,3.63513629,1960.4,1959.8,0.47923004]
[1770987155439,0.57496808,1960.4,1959.8,0.47923004]
[1770987156337,0.5837679,1960.6,1960.0,0.47902811]
[1770987156538,0.5837679,1960.6,1960.1,0.47902811]
[1770987161241,0.5837679,1960.6,1959.9,3.03282412]
[1770987161445,0.5837679,1960.6,1960.0,0.47887105]
[1770987162547,0.00475614,1960.6,1960.0,0.47887105]
[1770987162843,0.5837679,1960.6,1960.1,0.48090049]
[1770987168549,0.00475614,1960.6,1960.1,0.48090049]
[1770987168858,0.57901176,1960.8,1960.1,0.48090049]
[1770987169753,0.58334022,1960.8,1960.1,0.48090049]
[1770987171344,0.00432846,1960.8,1960.1,0.48090049]
[1770987171551,0.00432846,1960.8,1960.2,0.40481488]
[1770987172152,0.00432846,1960.8,1960.3,0.40481488]
[1770987172349,0.57901176,1961.3,1960.4,0.3924383]
[1770987172553,0.57901176,1961.3,1960.5,0.3924383]
[1770987173448,0.58558127,1961.3,1960.5,0.3924383]
[1770987181261,0.58558127,1961.3,1960.6,0.39616606]
[1770987181459,0.58558127,1961.3,1960.6,0.40179749]
[1770987188562,0.58558127,1961.3,1960.6,3.43462161]
[1770987192564,0.58558127,1961.3,1960.7,0.40181748]
[1770987192961,0.00656951,1961.3,1960.7,3.4346416]
[1770987193164,0.55100688,1961.4,1960.9,0.40181748]
[1770987193363,0.55100688,1961.5,1960.9,0.40181748]
[1770987193564,0.55100688,1961.5,1961.0,0.55678131]
[1770987194271,0.55551369,1961.5,1961.1,0.55678131]
[1770987194762,0.55100688,1961.6,1961.1,0.55678131]
[1770987194966,0.55100688,1961.9,1961.1,0.55678131]
[1770987195267,0.55100688,1961.9,1961.2,0.55678131]
[1770987195759,0.55100688,1961.9,1961.3,0.55678131]
[1770987195964,0.5566011,1961.9,1961.3,0.55678131]
[1770987196164,0.00559422,1961.9,1961.3,0.55678131]
[1770987196362,0.00559422,1961.9,1961.4,0.55678131]
[1770987198366,0.55100688,1962.3,1961.6,0.55678131]
[1770987198958,0.255,1962.2,1961.6,0.55678131]
[1770987199166,0.55100688,1962.1,1961.5,0.55678131]
[1770987199364,0.55574809,1962.1,1961.5,0.55678131]
[1770987201567,0.00474121,1962.1,1961.5,0.55678131]
[1770987203669,0.80595688,1962.7,1961.7,1.50086785]
[1770987203974,0.55100688,1962.6,1961.8,0.55678131]
[1770987204878,0.55670952,1962.6,1961.8,0.55678131]
[1770987210978,0.55503854,1962.4,1961.6,0.54207344]
[1770987213275,0.55503854,1962.4,1961.7,0.54207344]
[1770987213680,0.56074118,1962.6,1961.9,0.54207344]
[1770987213981,0.00570264,1962.6,1961.9,0.54207344]
[1770987214479,0.00570264,1962.6,1961.9,3.55866079]
[1770987214676,0.00570264,1962.6,1962.0,0.54207344]
[1770987214878,0.00570264,1962.6,1962.4,0.54207344]
[1770987216879,0.55503854,1962.8,1962.4,0.54207344]
[1770987217081,0.59748737,1963.1,1962.4,0.54207344]
[1770987217388,0.59748737,1963.1,1962.6,0.57803371]
[1770987217889,0.602706,1963.1,1962.6,0.57803371]
[1770987221090,0.602706,1963.1,1962.4,0.57803371]
[1770987222087,0.59748737,1962.9,1962.2,0.57803371]
[1770987223382,0.59748737,1962.9,1962.5,0.57803371]
[1770987223592,0.602706,1963.1,1962.5,0.57803371]
[1770987231991,0.602706,1963.1,1962.7,0.57803371]
[1770987232191,0.00521863,1963.1,1962.7,0.57803371]
[1770987232397,0.59748737,1963.4,1962.9,0.57803371]
[1770987233297,0.60202533,1963.4,1962.9,0.57803371]
[1770987233697,0.60202533,1963.4,1963.1,0.57803371]
[1770987236293,0.59748737,1963.7,1963.3,0.57803371]
[1770987236593,0.59748737,1963.9,1963.5,0.57803371]
[1770987237192,0.59748737,1963.6,1963.2,3.01658735]
[1770987237395,0.60218879,1963.6,1963.2,0.00397101]
[1770987237596,0.60218879,1963.6,1963.2,0.58200472]
[1770987238400,0.00470142,1963.6,1963.3,0.57803371]
[1770987239395,0.59748737,1963.8,1963.5,0.57803371]
[1770987240201,0.59748737,1964.2,1963.5,0.57803371]
[1770987240401,0.60116517,1964.2,1963.5,0.57803371]
[1770987240999,0.56777332,1964.1,1963.3,0.57650908]
[1770987253112,0.56777332,1964.1,1963.4,0.57650908]
[1770987255308,0.56777332,1964.1,1963.3,0.57650908]
[1770987260216,0.56777332,1964.1,1963.4,0.57650908]
[1770987260919,0.56777332,1964.1,1963.5,0.57650908]
[1770987262916,0.57145112,1964.2,1963.7,0.57650908]
[1770987264408,0.56777332,1964.1,1963.6,3.01658735]
[1770987264614,0.56777332,1964.1,1963.5,3.59309643]
[1770987265216,0.56777332,1964.1,1963.6,0.57650908]
[1770987265524,0.56777332,1964.1,1963.7,0.57650908]
[1770987268119,0.57145112,1964.2,1963.7,0.57650908]
[1770987268418,0.57145112,1964.2,1963.8,0.57650908]
[1770987269112,0.57145112,1964.2,1963.7,3.01658735]
[1770987269113,0.57145112,1964.2,1963.7,3.59309643]
[1770987269811,0.56777332,1964.1,1963.7,3.59309643]
[1770987270011,0.56777332,1964.1,1963.7,3.01658735]
[1770987270616,0.56777332,1964.1,1963.7,3.59309643]
[1770987271924,0.56777332,1964.1,1963.8,0.54737458]
[1770987273121,3.03710565,1963.9,1963.4,10.44554945]
[1770987273419,45.61210016,1964.0,1963.4,10.44554945]
[1770987273420,3.22842179,1964.1,1963.5,0.40714982]
[1770987273626,3.22842179,1964.1,1963.6,0.54737458]
[1770987274229,0.20116764,1964.0,1963.6,0.54737458]
[1770987274430,0.20484544,1964.2,1963.8,0.54737458]
[1770987275421,0.20484544,1964.2,1963.7,10.38615632]
[1770987275623,0.20484544,1964.2,1963.8,0.53907283]
[1770987275824,0.20484544,1964.2,1963.7,10.38615632]
[1770987276026,0.20484544,1964.2,1963.7,9.34708349]
[1770987276626,0.20454633,1964.0,1963.6,0.53907283]
[1770987276823,0.20454633,1964.0,1963.7,9.34708349]
[1770987277527,0.20454633,1964.0,1963.6,0.53907283]
[1770987277727,0.20454633,1964.0,1963.6,9.88615632]
[1770987278328,0.20454633,1964.0,1963.7,0.53907283]
[1770987278723,0.20454633,1964.0,1963.6,9.88615632]
[1770987282032,0.20454633,1964.0,1963.7,0.53907283]
[1770987282234,0.23341839,1964.1,1963.7,0.53907283]
[1770987282534,0.23341839,1964.1,1963.8,9.88615632]
[1770987282733,0.23341839,1964.1,1963.8,0.53907283]
[1770987282934,0.23341839,1964.1,1963.8,0.03907283]
[1770987283839,0.23341839,1964.1,1963.4,0.53907283]
[1770987284938,0.23341839,1964.1,1963.6,0.53907283]
[1770987285443,0.0036778,1964.2,1963.8,0.53907283]
[1770987286737,0.57817956,1964.2,1963.8,0.53907283]
[1770987289247,0.0036778,1964.2,1964.0,0.53907283]
[1770987289543,0.57450176,1964.8,1964.0,0.53907283]
[1770987289742,0.57450176,1964.8,1964.2,0.53907283]
[1770987290138,0.57450176,1964.8,1964.4,0.53907283]
[1770987290346,0.58032931,1964.8,1964.4,0.53907283]
[1770987290544,0.58032931,1964.8,1964.4,0.03907283]
[1770987290945,0.58032931,1964.8,1964.3,0.53907283]
[1770987291145,41.37450176,1964.7,1964.3,0.53907283]
[1770987291347,41.37450176,1964.7,1964.4,9.88615632]
[1770987291545,41.37450176,1964.7,1964.4,0.53907283]
[1770987291742,0.57450176,1964.6,1964.3,0.53907283]
[1770987292142,0.57450176,1964.6,1964.3,9.88615632]
[1770987292642,0.57450176,1964.6,1964.0,0.53907283]
[1770987293448,0.57450176,1964.6,1964.2,0.53907283]
[1770987294147,40.8,1964.7,1963.6,16.50757375]
[1770987294148,41.37450176,1964.7,1964.4,0.53907283]
[1770987294343,0.57450176,1964.6,1964.4,0.53907283]
[1770987294545,0.57450176,1964.6,1963.9,0.53907283]
[1770987294745,0.57450176,1964.6,1964.0,0.53907283]
[1770987295144,0.57450176,1964.6,1964.2,0.53907283]
[1770987295449,41.37450176,1964.7,1964.2,0.53907283]
[1770987295651,40.8,1964.7,1964.4,0.53907283]
[1770987296049,40.8,1964.7,1964.5,0.53907283]
[1770987296549,40.8,1964.7,1964.6,9.88615632]
[1770987296750,40.8,1964.7,1964.6,0.54417861]
[1770987296942,40.8,1964.7,1964.6,9.8912621]
[1770987297544,40.60039583,1964.7,1964.6,9.8912621]
[1770987297745,0.00582755,1964.8,1964.7,0.53907283]
[1770987298148,0.00582755,1964.8,1964.6,9.8912621]
[1770987298651,40.8,1964.7,1964.6,9.8912621]
[1770987299150,40.8,1964.7,1964.6,9.35218927]
[1770987299347,40.8,1964.7,1964.6,9.8912621]
[1770987299552,0.57450176,1965.3,1964.7,0.53907283]
[1770987299747,0.57450176,1965.3,1964.8,0.53907283]
[1770987300152,0.57450176,1965.3,1965.0,0.53907283]
[1770987300352,0.57450176,1965.3,1965.0,9.88615632]
[1770987300553,40.8,1965.2,1965.0,9.88615632]
[1770987301754,0.93534944,1965.1,1964.7,0.97198089]
[1770987302750,0.93534944,1965.1,1964.8,8.84708349]
[1770987302951,0.93534944,1965.1,1964.8,3.44596509]
[1770987303953,0.93534944,1965.1,1964.8,2.94936509]
[1770987305451,0.93534944,1965.1,1964.6,0.00510578]
[1770987305657,0.93534944,1965.1,1964.6,2.95447087]
[1770987306058,0.93534944,1964.9,1964.6,2.95447087]
[1770987306765,0.93534944,1964.9,1964.2,0.97198089]
[1770987307153,0.93534944,1964.9,1964.3,2.94936509]
[1770987307663,0.93534944,1964.9,1964.4,0.97198089]
[1770987308161,0.93534944,1964.5,1963.8,0.97198089]
[1770987308360,21.138,1964.8,1963.8,0.97198089]
[1770987308666,0.93534944,1964.9,1964.0,0.97198089]
[1770987309159,0.93534944,1964.9,1964.0,0.97797597]
[1770987315269,0.93534944,1964.9,1964.1,0.97198089]
[1770987317665,0.25466,1964.8,1964.1,0.97198089]
[1770987317865,0.93534944,1964.7,1964.1,0.97198089]
[1770987318367,1.19000944,1964.8,1964.1,0.97198089]
[1770987319865,0.93534944,1964.7,1964.1,0.97198089]
[1770987320061,0.93534944,1964.7,1964.0,0.97797597]
[1770987324668,0.93534944,1964.6,1964.0,0.97797597]
[1770987325270,0.93534944,1964.4,1964.0,0.97797597]
[1770987325869,0.93534944,1964.4,1963.9,0.97198089]
[1770987326375,0.93534944,1964.4,1963.8,0.97198089]
[1770987326974,0.93534944,1964.4,1963.8,0.97844429]
[1770987329176,0.93534944,1964.3,1963.5,5.49149383]
[1770987329373,0.93534944,1964.3,1963.5,0.97198089]
[1770987329768,0.93534944,1964.1,1963.5,0.97198089]
[1770987330272,0.93534944,1964.1,1963.5,0.97608042]
[1770987330671,1.1252057,1963.9,1963.5,0.97608042]
[1770987330870,1.13180953,1963.9,1963.5,0.97608042]
[1770987332378,40.8,1964.0,1963.5,0.97608042]
[1770987333274,40.8061832,1964.0,1963.5,0.97608042]
[1770987334874,1.1252057,1963.9,1963.5,0.97608042]
[1770987337280,1.1252057,1963.9,1963.5,1.16438145]
[1770987338578,40.8061832,1964.0,1963.5,1.16438145]
[1770987338775,41.88345412,1964.0,1963.5,1.16438145]
[1770987340674,40.8061832,1964.0,1963.5,2.65935959]
[1770987340880,40.8061832,1964.0,1963.6,1.16028192]
[1770987341277,1.07727092,1963.9,1963.5,0.00409953]
[1770987341675,1.07727092,1963.9,1963.5,1.16438145]
[1770987343985,1.07727092,1963.9,1963.5,0.00409953]
[1770987344281,1.07727092,1963.9,1963.5,1.16438145]
[1770987350186,1.07727092,1963.9,1963.5,0.00409953]
[1770987353689,1.07727092,1963.9,1963.5,1.16438145]
[1770987354089,1.07727092,1963.9,1963.5,0.00409953]
[1770987354693,1.07727092,1963.9,1963.5,1.16438145]
[1770987355996,41.88345412,1964.0,1963.5,1.16438145]
[1770987356193,41.88345412,1964.0,1963.6,1.16028192]
[1770987357897,40.8061832,1964.0,1963.6,1.16028192]
[1770987358096,41.88345412,1964.0,1963.6,1.16028192]
[1770987358294,41.88345412,1964.0,1963.7,1.16028192]
[1770987358498,40.8061832,1964.0,1963.7,1.16028192]
[1770987359400,1.07727092,1964.2,1963.7,1.16028192]
[1770987359602,1.07727092,1964.2,1963.8,1.16028192]
[1770987359798,4.12120024,1964.4,1963.9,1.16028192]
[1770987359996,1.07727092,1964.4,1963.9,3.02260412]
[1770987360197,1.07727092,1964.3,1964.0,3.02260412]
[1770987360504,40.8,1964.1,1964.0,3.02260412]
[1770987361202,40.8,1964.1,1963.9,4.18288604]
[1770987362699,41.90103896,1964.1,1963.9,3.02260412]
[1770987363201,40.8,1964.1,1963.9,1.13996357]
[1770987363399,41.90103896,1964.1,1963.8,4.16256769]
[1770987364203,41.90103896,1964.1,1963.9,1.13996357]
[1770987364704,40.8,1964.1,1963.9,1.13996357]
[1770987369808,41.90103896,1964.1,1963.8,14.40656769]
[1770987370206,41.90103896,1964.1,1963.9,1.13996357]
[1770987370608,40.8,1964.1,1963.9,1.13996357]
[1770987371410,41.90103896,1964.1,1963.8,14.40656769]
[1770987371709,41.90103896,1964.1,1963.8,4.16256769]
[1770987371912,41.90103896,1964.1,1963.8,14.43256769]
[1770987373111,40.8,1964.1,1963.9,1.13996357]
[1770987373410,1.10658184,1964.3,1964.0,1.13996357]
[1770987373611,1.10103896,1964.6,1964.0,1.13996357]
[1770987374403,40.8,1964.2,1964.0,1.13996357]
[1770987374607,0.00514777,1964.2,1964.0,1.13996357]
[1770987375510,40.8,1964.1,1964.0,1.13996357]
[1770987375807,0.00514777,1964.2,1964.0,1.13996357]
[1770987376110,1.10103896,1964.3,1964.0,1.13996357]
[1770987376705,40.8,1964.2,1964.0,1.13996357]
[1770987376911,41.90695764,1964.2,1963.9,4.5189063]
[1770987377106,41.90695764,1964.2,1963.9,13.33792816]
[1770987377610,41.90695764,1964.2,1963.9,14.47789173]
[1770987378206,41.90695764,1964.2,1963.9,4.16389173]
[1770987378411,1.10103896,1964.1,1963.9,3.02392816]
[1770987378913,40.80591868,1964.2,1964.0,1.13996357]
[1770987382613,41.90695764,1964.2,1963.9,5.65886987]
[1770987382818,40.80591868,1964.2,1964.0,1.13996357]
[1770987386320,41.90695764,1964.2,1964.0,3.02392816]
[1770987387112,41.90695764,1964.2,1964.0,13.43992816]
[1770987388221,40.80591868,1964.2,1964.0,14.57989173]
[1770987388619,40.80591868,1964.2,1964.0,13.43992816]
[1770987388620,41.90695764,1964.2,1964.0,13.43992816]
[1770987388820,41.90695764,1964.2,1964.0,3.02392816]
[1770987389022,1.10103896,1964.1,1964.0,13.46192816]
[1770987389321,1.10103896,1964.1,1964.0,14.95751294]
[1770987389524,41.90695764,1964.2,1964.0,14.95751294]
[1770987389823,41.90695764,1964.2,1964.1,1.91389636]
[1770987391617,0.94015486,1964.1,1964.0,14.32884188]
[1770987391821,0.94015486,1964.1,1963.9,10.48]
[1770987392927,0.94015486,1964.1,1963.8,7.69949133]
[1770987393129,0.94015486,1964.1,1963.9,10.493]
[1770987393428,0.94015486,1964.1,1963.7,16.54676375]
[1770987393629,0.94015486,1964.1,1963.7,18.19704054]
[1770987394020,0.94015486,1964.1,1963.6,16.55676375]
[1770987394226,0.94015486,1964.1,1963.6,10.506]
[1770987395424,0.94015486,1964.1,1963.5,10.51909953]
[1770987395927,0.94015486,1964.1,1963.5,10.52209953]
[1770987396523,0.94015486,1964.1,1963.5,0.00409953]
[1770987396722,0.26121105,1963.9,1963.4,10.523]
[1770987397528,0.26121105,1963.9,1963.2,12.08815051]
[1770987397732,0.26121105,1963.9,1963.2,12.09345496]
[1770987398726,43.85280992,1964.2,1963.2,0.00530445]
[1770987398727,0.2924629,1963.7,1963.2,0.00530445]
[1770987399133,0.2924629,1963.7,1963.2,1.5704011]
[1770987399333,40.8,1963.6,1963.2,1.5704011]
[1770987400632,0.37155488,1963.5,1963.0,1.55872712]
[1770987401839,0.37155488,1963.5,1963.0,1.56331522]
[1770987402443,40.8,1963.6,1963.0,1.56331522]
[1770987403834,41.2154633,1963.6,1963.0,1.56331522]
[1770987404236,0.43767143,1963.8,1963.0,1.56331522]
[1770987404435,0.43767143,1964.0,1963.0,1.56331522]
[1770987405134,40.8,1963.7,1963.0,1.56331522]
[1770987405330,0.00591868,1964.2,1963.4,1.55872712]
[1770987405530,0.91491145,1964.7,1963.9,1.55872712]
[1770987405736,0.91491145,1964.7,1964.1,1.55872712]
[1770987406131,0.91491145,1964.7,1963.8,1.58482064]
[1770987406327,1.54289218,1964.5,1963.6,1.58482064]
[1770987406728,1.54755132,1964.5,1963.6,1.58482064]
[1770987406929,1.54289218,1964.2,1963.3,1.58482064]
[1770987407733,1.54289218,1963.9,1963.0,7.64021112]
[1770987407934,1.54289218,1963.9,1963.0,1.58944737]
[1770987411843,1.54289218,1963.7,1963.0,1.58944737]
[1770987413244,1.54289218,1963.7,1963.0,0.0045881]
[1770987413944,1.54289218,1963.7,1962.7,1.55872712]
[1770987414844,1.54289218,1963.7,1962.7,1.56512711]
[1770987415145,1.54289218,1963.5,1962.7,0.00639999]
[1770987416239,1.54289218,1963.5,1962.7,1.56512711]
[1770987417346,1.54289218,1963.3,1962.7,1.56512711]
[1770987420454,1.54289218,1963.3,1962.7,0.00639999]
[1770987420750,1.54289218,1963.3,1962.7,2.28534086]
[1770987422948,1.94504934,1963.1,1962.7,0.00639999]
[1770987423143,1.94504934,1963.1,1962.2,2.27894087]
[1770987423349,2.39882558,1962.9,1962.2,2.27894087]
[1770987424248,2.40380091,1962.9,1962.2,2.2829251]
[1770987425044,2.40380091,1962.9,1962.2,0.00398423]
[1770987427152,2.39882558,1962.8,1962.0,2.27894087]
[1770987428152,2.39882558,1962.8,1962.0,0.00403753]
[1770987428452,2.39882558,1962.6,1962.0,0.00403753]
[1770987428841,40.8,1962.7,1962.0,2.2829784]
[1770987429046,2.39882558,1962.6,1962.0,2.2829784]
[1770987429453,2.39882558,1962.6,1962.0,0.00403753]
[1770987432051,2.39882558,1962.6,1961.9,2.27894087]
[1770987432948,2.39882558,1962.6,1961.9,2.28284428]
[1770987433147,2.39882558,1962.4,1961.6,2.27894087]
[1770987434156,2.39882558,1962.4,1961.6,2.2835647]
[1770987434456,2.39882558,1962.6,1961.6,2.2835647]
[1770987436652,2.39882558,1962.6,1961.7,2.27894087]
[1770987438057,43.19882558,1962.7,1961.9,2.27894087]
[1770987438558,2.39882558,1962.6,1961.9,2.27894087]
[1770987449670,2.39882558,1962.6,1962.0,2.27894087]
[1770987450271,40.8,1962.7,1962.1,2.27894087]
[1770987450969,0.00497533,1962.9,1962.3,7.05936542]
[1770987451172,0.00497533,1962.9,1962.4,2.53466088]
[1770987451570,2.46469245,1962.9,1962.4,2.53466088]
[1770987451771,2.46469245,1962.9,1962.5,2.53466088]
[1770987452070,40.8,1962.8,1962.5,2.53466088]
[1770987452666,0.00497533,1962.9,1962.5,2.53466088]
[1770987453067,2.45971712,1963.1,1962.6,2.53466088]
[1770987453665,40.8,1963.0,1962.6,2.53466088]
[1770987454069,40.8036424,1963.0,1962.7,2.53466088]
[1770987454667,0.0036424,1963.0,1962.7,2.53466088]
[1770987455569,40.8,1962.9,1962.7,2.53466088]
[1770987458670,2.62214742,1963.3,1962.7,2.53466088]
[1770987459570,43.42214742,1963.2,1962.7,2.53466088]
[1770987460678,43.42214742,1963.2,1962.8,1.36131345]
[1770987461479,2.62214742,1963.1,1962.6,8.91704976]
[1770987461778,2.62214742,1963.1,1962.6,4.39234522]
[1770987463779,2.62214742,1963.1,1962.6,3.02867271]
[1770987464077,2.62214742,1963.1,1962.5,3.02867271]
[1770987464277,2.62214742,1963.1,1962.5,4.41642204]
[1770987465678,2.62214742,1963.1,1962.6,1.38645947]
[1770987465878,2.62214742,1963.1,1962.5,4.41036958]
[1770987466077,2.62214742,1963.1,1962.5,3.02867271]
[1770987466280,2.62214742,1963.1,1962.5,4.41009918]
[1770987467480,2.62214742,1963.1,1962.6,1.21311128]
[1770987468679,43.42214742,1963.2,1962.7,1.2080935]
[1770987468878,40.8,1963.2,1962.9,1.2031483]
[1770987469275,43.42214742,1963.2,1962.9,1.2031483]
[1770987471474,43.42214742,1963.2,1962.8,2.67979593]
[1770987471675,43.42214742,1963.2,1962.9,1.18388748]
[1770987476078,43.42214742,1963.2,1962.8,4.52458116]
[1770987476079,43.42214742,1963.2,1962.8,5.68998941]
[1770987476280,2.62214742,1963.1,1962.8,5.68998941]
[1770987477386,2.62214742,1963.1,1962.8,3.02867271]
[1770987478179,2.62214742,1963.1,1962.8,7.55337725]
[1770987478378,2.62214742,1963.1,1962.8,3.02867271]
[1770987479187,2.62214742,1963.1,1962.8,7.55337725]
[1770987479390,2.62214742,1963.1,1962.8,7.55982134]
[1770987479781,2.62214742,1963.1,1962.9,3.0351168]
[1770987480089,43.42214742,1963.2,1962.9,3.0351168]
[1770987480386,2.62214742,1963.1,1962.9,3.0351168]
[1770987481185,2.62214742,1963.1,1962.9,7.55982134]
[1770987481587,43.42221796,1963.2,1962.9,10.16113569]
[1770987481784,40.8,1963.2,1963.0,10.16113569]
[1770987481985,43.42221796,1963.2,1963.0,7.56419103]
[1770987482293,43.42221796,1963.2,1963.1,3.0351168]
[1770987484687,2.62221796,1963.1,1962.8,16.72076375]
[1770987485388,2.62221796,1963.1,1962.8,19.3220781]
[1770987485685,2.62221796,1963.1,1962.8,16.72658373]
[1770987486786,2.62221796,1963.1,1962.8,19.32789808]
[1770987487782,2.62221796,1963.1,1962.8,16.72658373]
[1770987488792,2.62221796,1963.1,1962.8,19.32789808]
[1770987489290,2.62221796,1963.1,1962.8,8.65789808]
[1770987489492,43.42221796,1963.2,1962.9,2.60131435]
[1770987489993,2.62221796,1963.1,1962.8,19.39989808]
[1770987490193,2.62221796,1963.1,1962.8,13.34913433]
[1770987490488,2.62221796,1963.1,1962.7,2.91340279]
[1770987490692,2.62221796,1963.1,1962.8,2.91340279]
[1770987491688,2.62221796,1963.1,1962.5,11.00696]
[1770987491892,2.62221796,1963.1,1962.6,2.60131435]
[1770987492094,2.62221796,1962.9,1962.3,2.60131435]
[1770987492288,1.49590845,1963.0,1962.3,2.60131435]
[1770987492489,2.62221796,1963.0,1962.3,2.60131435]
[1770987492693,2.62221796,1963.0,1962.3,2.60562085]
[1770987493092,2.62221796,1963.0,1962.3,0.0043065]
[1770987493390,2.62221796,1962.9,1962.3,2.60562085]
[1770987497293,1.49590845,1962.6,1962.0,10.23376188]
[1770987497490,2.62221796,1962.5,1962.0,2.60131435]
[1770987498293,2.62221796,1962.5,1962.0,2.60562842]
[1770987499993,40.8,1962.4,1962.0,2.60562842]
[1770987500198,2.62221796,1962.3,1962.0,2.60562842]
[1770987500393,43.42221796,1962.4,1962.1,2.60131435]
[1770987500589,2.62221796,1962.2,1961.2,16.75533391]
[1770987500789,1.49590845,1961.7,1961.0,2.60131435]
[1770987500995,2.62221796,1961.4,1960.8,2.60131435]
[1770987501191,2.62221796,1961.8,1961.1,2.60131435]
[1770987501397,4.54516972,1962.1,1961.3,2.60131435]
[1770987501398,2.62221796,1962.0,1961.3,2.60131435]
[1770987501594,2.62221796,1961.4,1961.1,0.00582728]
[1770987501894,1.49590845,1961.5,1960.7,2.60131435]
[1770987502094,2.62809841,1961.8,1961.1,2.60131435]
[1770987502498,2.62809841,1961.8,1961.0,1.49590845]
[1770987502499,2.62221796,1962.0,1961.4,1.49590845]
[1770987502800,2.62221796,1962.2,1961.5,2.60131435]
[1770987502995,1.49590845,1961.7,1960.8,1.49590845]
[1770987503202,2.62221796,1961.6,1961.1,2.60131435]
[1770987503403,40.8,1961.6,1961.3,2.60131435]
[1770987503602,40.80411236,1961.6,1961.3,2.60491335]
[1770987503799,2.62221796,1961.5,1960.5,2.60131435]
[1770987504001,1.49590845,1961.2,1960.5,2.60131435]
[1770987504202,1.49590845,1960.8,1960.2,2.60131435]
[1770987504400,2.62221796,1960.2,1959.5,2.60131435]
[1770987504602,1.49590845,1959.9,1959.3,2.60131435]
[1770987504797,0.00453508,1959.9,1959.5,2.60131435]
[1770987505105,2.62221796,1961.2,1959.9,2.60131435]
[1770987505294,2.62221796,1961.0,1960.2,2.60131435]
[1770987505501,2.62221796,1960.8,1960.0,2.60131435]
[1770987505702,2.62221796,1960.8,1960.1,1.49590845]
[1770987505901,2.62655679,1960.8,1960.0,2.60131435]
[1770987506099,2.62221796,1960.6,1959.9,1.49590845]
[1770987506304,2.62221796,1960.6,1960.0,2.60131435]
[1770987506505,2.62655679,1960.8,1960.3,1.49590845]
[1770987506695,0.00433883,1960.8,1960.4,2.60131435]
[1770987507101,2.62221796,1961.2,1960.4,2.60131435]
[1770987507401,2.62221796,1961.4,1960.4,2.60131435]
[1770987507899,40.8,1961.6,1960.6,2.60131435]
[1770987508104,40.80399033,1961.6,1960.6,2.60131435]
[1770987508302,2.62221796,1961.5,1960.6,2.60131435]
[1770987509002,2.62221796,1961.5,1960.4,2.60131435]
[1770987509603,2.62221796,1961.5,1960.5,2.60131435]
[1770987510695,40.80399033,1961.6,1959.9,0.2553]
[1770987510696,3.1964812,1961.3,1960.0,3.02844706]